fUSD/lending_fUSD_20240727
["ID","MTS","AMOUNT","RATE_DAILY","PERIOD"]
[333324471,1722055859827,-571.97240185,0.00010999,2]
[333324472,1722055859837,-670.69,0.00010999,2]
[333324473,1722055859847,-670.69,0.00010999,2]
[333324474,1722055859856,-670.69,0.00010999,2]
[333324475,1722055859867,-670.69,0.00010999,2]
[333324476,1722055859876,-151.0,0.00010999,2]
[333324477,1722055859886,-670.69,0.00010999,2]
[333324478,1722055859895,-151.0,0.00010999,2]
[333324479,1722055859904,-670.69,0.00010999,2]
[333324480,1722055859913,-151.0,0.00010999,2]
[333324481,1722055859923,-670.69,0.00010999,2]
[333324482,1722055859932,-670.69,0.00010999,2]
[333324483,1722055859941,-670.69,0.00010999,2]
[333324484,1722055859950,-670.69,0.00010999,2]
[333324485,1722055859959,-670.69,0.00010999,2]
[333324486,1722055859969,-670.69,0.00010999,2]
[333324487,1722055859979,-670.69,0.00010999,2]
[333324488,1722055859988,-670.80231315,0.00010999,2]
[333324489,1722055859998,-706.88,0.00010999,2]
[333324490,1722055860007,-706.88,0.00010999,2]
[333324491,1722055860017,-706.88,0.00010999,2]
[333324492,1722055860027,-706.88,0.00010999,2]
[333324493,1722055860036,-706.88,0.00010999,2]
[333324494,1722055860047,-706.88,0.00010999,2]
[333324495,1722055860056,-706.88,0.00010999,2]
[333324496,1722055860066,-706.88,0.00010999,2]
[333324497,1722055860076,-706.88,0.00010999,2]
[333324498,1722055860085,-706.88,0.00010999,2]
[333324499,1722055860094,-706.88,0.00010999,2]
[333324500,1722055860103,-706.88,0.00010999,2]
[333324501,1722055860113,-706.88,0.00010999,2]
[333324502,1722055860122,-706.89319964,0.00010999,2]
[333324503,1722055860131,-500.0,0.00010999,2]
[333324504,1722055860141,-500.0,0.00010999,2]
[333324505,1722055860150,-500.0,0.00010999,2]
[333324506,1722055860159,-500.0,0.00010999,2]
[333324507,1722055860169,-500.0,0.00010999,2]
[333324508,1722055860178,-500.0,0.00010999,2]
[333324509,1722055860188,-500.0,0.00010999,2]
[333324510,1722055860198,-151.0,0.00010999,2]
[333324511,1722055860207,-151.0,0.00010999,2]
[333324512,1722055860217,-500.0,0.00010999,2]
[333324513,1722055860227,-500.0,0.00010999,2]
[333324514,1722055860237,-500.0,0.00010999,2]
[333324515,1722055860247,-151.0,0.00010999,2]
[333324516,1722055860256,-500.0,0.00010999,2]
[333324517,1722055860266,-500.0,0.00010999,2]
[333324518,1722055860275,-569.32166786,0.00010999,2]
[333324519,1722055860285,-151.0,0.00010999,2]
[333324520,1722055860294,-151.0,0.00010999,2]
[333324521,1722055860304,-294.836382,0.00010999,2]
[333324522,1722055860314,-359.98543934,0.00010999,2]
[333324523,1722055860324,-500.0,0.00010999,2]
[333324524,1722055860333,-500.0,0.00010999,2]
[333324525,1722055860343,-500.0,0.00010999,2]
[333324526,1722055860352,-500.0,0.00010999,2]
[333324527,1722055860362,-500.0,0.00010999,2]
[333324528,1722055860371,-500.0,0.00010999,2]
[333324529,1722055860380,-500.0,0.00010999,2]
[333324530,1722055860389,-500.0,0.00010999,2]
[333324531,1722055860398,-354.12793459,0.00010999,2]
[333324532,1722055860408,-500.0,0.00010999,2]
[333324533,1722055860417,-500.0,0.00010999,2]
[333324534,1722055860427,-500.0,0.00010999,2]
[333324535,1722055860436,-500.0,0.00010999,2]
[333324536,1722055860445,-500.0,0.00010999,2]
[333324537,1722055860458,-500.0,0.00010999,2]
[333324538,1722055860467,-500.0,0.00010999,2]
[333324539,1722055860477,-500.0,0.00010999,2]
[333324540,1722055860486,-500.0,0.00010999,2]
[333324541,1722055860496,-500.0,0.00010999,2]
[333324542,1722055860505,-167.54884345,0.00010999,2]
[333324543,1722055860514,-151.0,0.00010999,2]
[333324544,1722055860524,-166.223991,0.00010999,2]
[333324545,1722055860534,-164.37139029,0.00010999,2]
[333324546,1722055860557,-790.45860971,0.00010999,2]
[333324547,1722055860568,-954.83,0.00010999,2]
[333324548,1722055860577,-954.83,0.00010999,2]
[333324549,1722055860588,-954.83,0.00010999,2]
[333324550,1722055860597,-233.54880354,0.00010999,2]
[333324551,1722055860613,-721.28119646,0.00010999,2]
[333324552,1722055860623,-389.07073736,0.00010999,2]
[333324553,1722055860636,-565.75926264,0.00010999,2]
[333324554,1722055860646,-954.83,0.00010999,2]
[333324555,1722055860656,-954.83,0.00010999,2]
[333324556,1722055860666,-954.83,0.00010999,2]
[333324557,1722055860677,-954.83,0.00010999,2]
[333324558,1722055860686,-954.83,0.00010999,2]
[333324559,1722055860696,-954.83,0.00010999,2]
[333324560,1722055860706,-954.83,0.00010999,2]
[333324561,1722055860716,-954.96526784,0.00010999,2]
[333324562,1722055860726,-642.13,0.00010999,2]
[333324563,1722055860736,-642.13,0.00010999,2]
[333324564,1722055860746,-642.13,0.00010999,2]
[333324565,1722055860756,-642.13,0.00010999,2]
[333324566,1722055860766,-642.13,0.00010999,2]
[333324567,1722055860775,-642.13,0.00010999,2]
[333324568,1722055860787,-642.13,0.00010999,2]
[333324569,1722055860797,-642.13,0.00010999,2]
[333324570,1722055860807,-642.13,0.00010999,2]
[333324571,1722055860819,-642.13,0.00010999,2]
[333324572,1722055860828,-642.13,0.00010999,2]
[333324573,1722055860976,-642.13,0.00010999,2]
[333324574,1722055860987,-642.13,0.00010999,2]
[333324575,1722055860997,-642.2933952,0.00010999,2]
[333324576,1722055861006,-877.09,0.00010999,2]
[333324577,1722055861016,-877.09,0.00010999,2]
[333324578,1722055861026,-877.09,0.00010999,2]
[333324579,1722055861035,-877.09,0.00010999,2]
[333324580,1722055861044,-877.09,0.00010999,2]
[333324581,1722055861054,-877.09,0.00010999,2]
[333324582,1722055861063,-877.09,0.00010999,2]
[333324583,1722055861072,-877.09,0.00010999,2]
[333324584,1722055861082,-877.09,0.00010999,2]
[333324585,1722055861091,-877.09,0.00010999,2]
[333324586,1722055861101,-877.09,0.00010999,2]
[333324587,1722055861110,-877.09,0.00010999,2]
[333324588,1722055861119,-877.09,0.00010999,2]
[333324589,1722055861129,-877.13373695,0.00010999,2]
[333324590,1722055861139,-500.0,0.00010999,2]
[333324591,1722055861148,-500.0,0.00010999,2]
[333324592,1722055861159,-514.85666591,0.00010999,2]
[333324593,1722055861169,-918.8,0.00010999,2]
[333324594,1722055861180,-918.8,0.00010999,2]
[333324595,1722055861189,-918.8,0.00010999,2]
[333324596,1722055861199,-918.8,0.00010999,2]
[333324597,1722055861208,-918.8,0.00010999,2]
[333324598,1722055861219,-918.8,0.00010999,2]
[333324599,1722055861228,-918.8,0.00010999,2]
[333324600,1722055861239,-918.8,0.00010999,2]
[333324601,1722055861249,-918.8,0.00010999,2]
[333324602,1722055861258,-918.8,0.00010999,2]
[333324603,1722055861267,-918.8,0.00010999,2]
[333324604,1722055861277,-918.8,0.00010999,2]
[333324605,1722055861287,-918.8,0.00010999,2]
[333324606,1722055861297,-918.88671521,0.00010999,2]
[333324607,1722055861308,-514.00541268,0.00010999,2]
[333324608,1722055861319,-500.0,0.00010999,2]
[333324609,1722055861329,-524.52164481,0.00010999,2]
[333324610,1722055861338,-500.0,0.00010999,2]
[333324611,1722055861348,-500.0,0.00010999,2]
[333324612,1722055861358,-500.0,0.00010999,2]
[333324613,1722055861367,-322.65130378,0.00010999,2]
[333324614,1722055861376,-500.0,0.00010999,2]
[333324615,1722055861386,-500.0,0.00010999,2]
[333324616,1722055861396,-500.0,0.00010999,2]
[333324617,1722055861406,-500.0,0.00010999,2]
[333324618,1722055861415,-500.0,0.00010999,2]
[333324619,1722055861424,-500.0,0.00010999,2]
[333324620,1722055861434,-500.0,0.00010999,2]
[333324621,1722055861444,-500.0,0.00010999,2]
[333324622,1722055861454,-500.0,0.00010999,2]
[333324623,1722055861464,-500.0,0.00010999,2]
[333324624,1722055861475,-500.0,0.00010999,2]
[333324625,1722055861484,-500.0,0.00010999,2]
[333324626,1722055861494,-500.0,0.00010999,2]
[333324627,1722055861504,-262.42285397,0.00010999,2]
[333324628,1722055861513,-500.0,0.00010999,2]
[333324629,1722055861523,-500.0,0.00010999,2]
[333324630,1722055861532,-500.0,0.00010999,2]
[333324631,1722055861542,-500.0,0.00010999,2]
[333324632,1722055861552,-297.9,0.00010999,2]
[333324633,1722055861563,-500.0,0.00010999,2]
[333324634,1722055861573,-500.0,0.00010999,2]
[333324635,1722055861583,-500.0,0.00010999,2]
[333324636,1722055861592,-418.15,0.00010999,2]
[333324637,1722055861602,-197.922285,0.00010999,2]
[333324638,1722055861612,-197.922285,0.00010999,2]
[333324639,1722055861621,-197.922285,0.00010999,2]
[333324640,1722055861630,-197.922285,0.00010999,2]
[333324641,1722055861640,-197.922285,0.00010999,2]
[333324642,1722055861650,-197.922285,0.00010999,2]
[333324643,1722055861659,-617.33,0.00010999,2]
[333324644,1722055861669,-617.33,0.00010999,2]
[333324645,1722055861679,-617.33,0.00010999,2]
[333324646,1722055861690,-617.33,0.00010999,2]
[333324647,1722055861701,-617.33,0.00010999,2]
[333324648,1722055861712,-617.33,0.00010999,2]
[333324649,1722055861721,-617.33,0.00010999,2]
[333324650,1722055861731,-617.33,0.00010999,2]
[333324651,1722055861742,-617.33,0.00010999,2]
[333324652,1722055861752,-617.33,0.00010999,2]
[333324653,1722055861762,-617.33,0.00010999,2]
[333324654,1722055861771,-617.33,0.00010999,2]
[333324655,1722055861782,-617.33,0.00010999,2]
[333324656,1722055861795,-617.33,0.00010999,2]
[333324657,1722055861805,-617.33,0.00010999,2]
[333324658,1722055861814,-617.33,0.00010999,2]
[333324659,1722055861823,-617.33,0.00010999,2]
[333324660,1722055861834,-617.33,0.00010999,2]
[333324661,1722055861844,-617.33,0.00010999,2]
[333324662,1722055861854,-617.33,0.00010999,2]
[333324663,1722055861866,-617.54,0.00010999,2]
[333324664,1722055861876,-151.0,0.00010999,2]
[333324665,1722055861886,-151.0,0.00010999,2]
[333324666,1722055861896,-151.0,0.00010999,2]
[333324667,1722055861906,-151.0,0.00010999,2]
[333324668,1722055861917,-151.131217,0.00010999,2]
[333324669,1722055861926,-151.0,0.00010999,2]
[333324670,1722055861936,-151.0,0.00010999,2]
[333324671,1722055861948,-250.382,0.00010999,2]
[333324672,1722055861958,-500.0,0.00010999,2]
[333324673,1722055861967,-500.0,0.00010999,2]
[333324674,1722055861976,-401.15,0.00010999,2]
[333324675,1722055861986,-190.530856,0.00010999,2]
[333324676,1722055861996,-190.530856,0.00010999,2]
[333324677,1722055862006,-190.530856,0.00010999,2]
[333324678,1722055862015,-500.0,0.00010999,2]
[333324679,1722055862025,-500.0,0.00010999,2]
[333324680,1722055862034,-500.0,0.00010999,2]
[333324681,1722055862043,-500.0,0.00010999,2]
[333324682,1722055862054,-190.530856,0.00010999,2]
[333324683,1722055862064,-500.0,0.00010999,2]
[333324684,1722055862074,-500.0,0.00010999,2]
[333324685,1722055862083,-190.530856,0.00010999,2]
[333324686,1722055862093,-500.0,0.00010999,2]
[333324687,1722055862102,-190.530856,0.00010999,2]
[333324688,1722055862111,-500.0,0.00010999,2]
[333324689,1722055862122,-500.0,0.00010999,2]
[333324690,1722055862131,-488.46,0.00010999,2]
[333324691,1722055862140,-151.16634,0.00010999,2]
[333324692,1722055862150,-500.0,0.00010999,2]
[333324693,1722055862160,-644.8,0.00010999,2]
[333324694,1722055862169,-164.458908,0.00010999,2]
[333324695,1722055862179,-164.458908,0.00010999,2]
[333324696,1722055862188,-164.458908,0.00010999,2]
[333324697,1722055862197,-164.458908,0.00010999,2]
[333324698,1722055862206,-164.458908,0.00010999,2]
[333324699,1722055862216,-164.458908,0.00010999,2]
[333324700,1722055862228,-151.0,0.00010999,2]
[333324701,1722055862237,-151.0,0.00010999,2]
[333324702,1722055862246,-151.0,0.00010999,2]
[333324703,1722055862258,-151.0,0.00010999,2]
[333324704,1722055862268,-151.0,0.00010999,2]
[333324705,1722055862277,-168.484758,0.00010999,2]
[333324706,1722055862287,-151.0,0.00010999,2]
[333324707,1722055862296,-151.0,0.00010999,2]
[333324708,1722055862306,-151.0,0.00010999,2]
[333324709,1722055862316,-227.51243921,0.00010999,2]
[333324710,1722055862326,-151.022684,0.00010999,2]
[333324711,1722055862335,-1994.982195,0.00010999,2]
[333324712,1722055862344,-1994.982195,0.00010999,2]
[333324713,1722055862353,-1994.982195,0.00010999,2]
[333324714,1722055862362,-151.0,0.00010999,2]
[333324715,1722055862372,-1994.982195,0.00010999,2]
[333324716,1722055862382,-1994.982195,0.00010999,2]
[333324717,1722055862393,-595.48264856,0.00010999,2]
[333324718,1722055862608,-1399.49954644,0.00010999,2]
[333324719,1722055862617,-151.0,0.00010999,2]
[333324720,1722055862627,-186.159428,0.00010999,2]
[333324721,1722055862636,-238.052332,0.00010999,2]
[333324722,1722055862646,-151.0,0.00010999,2]
[333324723,1722055862656,-151.0,0.00010999,2]
[333324724,1722055862667,-214.004684,0.00010999,2]
[333324725,1722055862678,-151.0,0.00010999,2]
[333324726,1722055862688,-151.0,0.00010999,2]
[333324727,1722055862700,-151.0,0.00010999,2]
[333324728,1722055862710,-805.03,0.00010999,2]
[333324729,1722055862721,-805.03,0.00010999,2]
[333324730,1722055862730,-805.03,0.00010999,2]
[333324731,1722055862739,-805.03,0.00010999,2]
[333324732,1722055862749,-555.27026159,0.00010999,2]
[333324733,1722055862763,-249.75973841,0.00010999,2]
[333324734,1722055862773,-652.44849169,0.00010999,2]
[333324735,1722055862787,-152.58150831,0.00010999,2]
[333324736,1722055862797,-173.17849169,0.00010999,2]
[333324737,1722055862895,-480.42187658,0.00010999,2]
[333324738,1722055862907,-151.42963173,0.00010999,2]
[333324739,1722055862916,-805.03,0.00010999,2]
[333324740,1722055862927,-805.03,0.00010999,2]
[333324741,1722055862937,-805.03,0.00010999,2]
[333324742,1722055862946,-805.03,0.00010999,2]
[333324743,1722055862956,-805.03,0.00010999,2]
[333324744,1722055862966,-500.0,0.00010999,2]
[333324745,1722055862976,-209.69232634,0.00010999,2]
[333324746,1722055862985,-805.03,0.00010999,2]
[333324747,1722055862995,-805.03,0.00010999,2]
[333324748,1722055863005,-805.11983203,0.00010999,2]
[333324749,1722055863014,-139854.17077867,0.00011,2]
[333324750,1722055863025,-13815.78489653,0.00011,2]
[333324751,1722055863036,-1066.32182804,0.00011,2]
[333324752,1722055863048,-680.84645496,0.00011,2]
[333324753,1722055863059,-894.35234969,0.00011,2]
[333324754,1722055863071,-321.7859842,0.00011,2]
[333324755,1722055863082,-1022.94684141,0.00011,2]
[333324756,1722055863094,-900.0,0.00011,2]
[333324757,1722055863106,-1732.89808401,0.00011,2]
[333324758,1722055863115,-910.92811816,0.00011,2]
[333324759,1722055863127,-2734.9,0.00011,2]
[333324760,1722055863139,-3827.0,0.00011,2]
[333324761,1722055863149,-21359.08022655,0.00011,2]
[333324762,1722055863161,-3010.20539697,0.00011,2]
[333324763,1722055863238,-425.65,0.00010278,2]
[333324764,1722055863247,-321.89487454,0.00010278,2]
[333324765,1722055863262,-208.20512546,0.00010278,2]
[333324766,1722055863272,-214.9105535,0.00011,2]
[333324767,1722055863283,-313.99159286,0.00011,2]
[333324768,1722055863298,-1082.16293103,0.00011,2]
[333324769,1722055863309,-6134.45000001,0.00011,2]
[333324770,1722055863324,-332.86326019,0.00011,2]
[333324771,1722055863335,-987.72606833,0.00011,2]
[333324773,1722056174502,250.0,0.00015,60]
[333324774,1722056195131,152.07,0.000149,31]
[333324775,1722056195193,152.07,0.000149,31]
[333324776,1722056195251,152.07,0.000149,31]
[333324777,1722056195310,152.07,0.000149,31]
[333324778,1722056195370,152.07,0.000149,31]
[333324779,1722056195439,152.07,0.000149,31]
[333324780,1722056195494,152.07,0.000149,31]
[333324781,1722056195574,152.07,0.000149,31]
[333324782,1722056195623,152.07,0.000149,31]
[333324783,1722056195689,152.07,0.000149,31]
[333324784,1722056195743,152.07,0.000149,31]
[333324785,1722056195802,152.07,0.000149,31]
[333324786,1722056195864,152.07,0.000149,31]
[333324787,1722056195992,152.07,0.000149,31]
[333324788,1722056196043,152.07,0.000149,31]
[333324789,1722056196109,152.07,0.000149,31]
[333324790,1722056196160,152.07,0.000149,31]
[333324791,1722056196284,152.07,0.000149,31]
[333324792,1722056196346,152.07,0.000149,31]
[333324793,1722056196402,152.07,0.000149,31]
[333324794,1722056197078,152.07,0.000149,31]
[333324796,1722056693614,-190.39,8.219e-05,2]
[333324797,1722056693635,-237.62,9.713e-05,2]
[333324798,1722056693657,-165.54,9.717e-05,2]
[333324799,1722056693678,-751.31,9.717e-05,2]
[333324800,1722056693698,-372.32,9.724e-05,2]
[333324801,1722056693720,-1000.0,9.874e-05,2]
[333324802,1722056693742,-400.0,9.9e-05,3]
[333324803,1722056693763,-900.0,0.0001,3]
[333324804,1722056693783,-1250.0,0.0001,2]
[333324805,1722056693805,-1400.0,0.000101,3]
[333324806,1722056693827,-300.0,0.00010199,2]
[333324807,1722056693849,-1900.0,0.000102,3]
[333324808,1722056693870,-425.65,0.000102,2]
[333324809,1722056693891,-850.11,0.000102,2]
[333324810,1722056693912,-425.58,0.000102,2]
[333324811,1722056693935,-2400.0,0.000103,3]
[333324812,1722056693955,-530.1,0.000103,2]
[333324813,1722056693976,-425.65,0.000103,2]
[333324814,1722056693999,-205.92,0.000103,2]
[333324815,1722056694021,-425.65,0.000103,2]
[333324816,1722056694046,-425.65,0.000103,2]
[333324817,1722056694069,-441.7725,0.00010331,2]
[333324818,1722056694092,-14129.3175,0.00010331,2]
[333324819,1722056694118,-400.0,0.000104,3]
[333324820,1722056694141,-190.39,0.00010462,2]
[333324821,1722056694165,-400.0,0.000105,3]
[333324822,1722056694188,-400.0,0.000106,3]
[333324823,1722056694212,-82514.2704,0.00010699,2]
[333324824,1722056694234,-400.0,0.000107,3]
[333324825,1722056694454,-1000.0,0.000108,3]
[333324826,1722056694476,-5201.0,0.0001089,2]
[333324827,1722056694498,-1000.0,0.00010896,2]
[333324828,1722056694518,-2000.0,0.00010896,2]
[333324829,1722056694539,-1025.83183238,0.000109,2]
[333324830,1722056694562,-1196.99892424,0.000109,2]
[333324831,1722056694583,-17889.6887,0.000109,2]
[333324832,1722056694603,-198.46920995,0.000109,2]
[333324833,1722056694624,-2644.34656102,0.000109,2]
[333324834,1722056694645,-500.0,0.00010912,2]
[333324835,1722056694666,-500.0,0.00010958,2]
[333324836,1722056694687,-280.99797083,0.00010958,2]
[333324837,1722056694709,-500.0,0.00010958,2]
[333324838,1722056694736,-500.0,0.00010958,2]
[333324839,1722056694758,-500.0,0.00010958,2]
[333324840,1722056694780,-500.0,0.00010958,2]
[333324841,1722056694801,-500.0,0.00010958,2]
[333324842,1722056694824,-500.0,0.00010958,2]
[333324843,1722056694846,-500.0,0.00010958,2]
[333324844,1722056694868,-500.0,0.00010958,2]
[333324845,1722056694889,-500.0,0.00010958,2]
[333324846,1722056694910,-500.0,0.00010958,2]
[333324847,1722056694932,-500.0,0.00010958,2]
[333324848,1722056694952,-500.0,0.00010958,2]
[333324849,1722056694973,-500.0,0.00010958,2]
[333324850,1722056694993,-500.0,0.00010958,2]
[333324851,1722056695014,-500.0,0.00010958,2]
[333324852,1722056695034,-500.0,0.00010958,2]
[333324853,1722056695054,-500.0,0.00010958,2]
[333324854,1722056695076,-500.0,0.00010958,2]
[333324855,1722056695097,-500.0,0.00010958,2]
[333324856,1722056695121,-500.0,0.00010958,2]
[333324857,1722056695143,-500.0,0.00010958,2]
[333324858,1722056695165,-500.0,0.00010958,2]
[333324859,1722056695187,-500.0,0.00010958,2]
[333324860,1722056695208,-500.0,0.00010958,2]
[333324861,1722056695229,-500.0,0.00010958,2]
[333324862,1722056695249,-415.05011364,0.00010958,2]
[333324863,1722056695269,-500.0,0.00010958,2]
[333324864,1722056695291,-500.0,0.00010958,2]
[333324865,1722056695312,-500.0,0.00010958,2]
[333324866,1722056695333,-500.0,0.00010958,2]
[333324867,1722056695354,-630.72,0.00010958,2]
[333324868,1722056695374,-500.0,0.00010958,2]
[333324869,1722056695396,-500.0,0.00010958,2]
[333324870,1722056695416,-500.0,0.00010958,2]
[333324871,1722056695437,-500.0,0.00010958,2]
[333324872,1722056695458,-500.0,0.00010958,2]
[333324873,1722056695478,-500.0,0.00010958,2]
[333324874,1722056695499,-500.0,0.00010958,2]
[333324875,1722056695523,-500.0,0.00010958,2]
[333324876,1722056695543,-500.0,0.00010958,2]
[333324877,1722056695565,-500.0,0.00010958,2]
[333324878,1722056695587,-500.0,0.00010958,2]
[333324879,1722056695608,-500.0,0.00010958,2]
[333324880,1722056695629,-500.0,0.00010958,2]
[333324881,1722056695651,-500.0,0.00010958,2]
[333324882,1722056695672,-500.0,0.00010958,2]
[333324883,1722056695694,-500.0,0.00010958,2]
[333324884,1722056695716,-346.23,0.00010958,2]
[333324885,1722056695737,-500.0,0.00010958,2]
[333324886,1722056695761,-500.0,0.00010958,2]
[333324887,1722056695783,-500.0,0.00010958,2]
[333324888,1722056695805,-500.0,0.00010958,2]
[333324889,1722056695830,-500.0,0.00010958,2]
[333324890,1722056695852,-500.0,0.00010958,2]
[333324891,1722056695875,-500.0,0.00010958,2]
[333324892,1722056695896,-500.0,0.00010958,2]
[333324893,1722056695919,-150.66814137,0.00010958,2]
[333324894,1722056695940,-583.38757577,0.00010958,2]
[333324895,1722056695962,-150.0,0.00010958,2]
[333324896,1722056695984,-500.0,0.00010958,2]
[333324897,1722056696005,-500.0,0.00010958,2]
[333324898,1722056696026,-500.0,0.00010958,2]
[333324899,1722056696047,-500.0,0.00010958,2]
[333324900,1722056696068,-500.0,0.00010958,2]
[333324901,1722056696090,-500.0,0.00010958,2]
[333324902,1722056696115,-500.0,0.00010958,2]
[333324903,1722056696139,-500.0,0.00010958,2]
[333324904,1722056696161,-405.79384232,0.00010958,2]
[333324905,1722056696182,-500.0,0.00010958,2]
[333324906,1722056696205,-500.0,0.00010958,2]
[333324907,1722056696227,-500.0,0.00010958,2]
[333324908,1722056696247,-500.0,0.00010958,2]
[333324909,1722056696267,-500.0,0.00010958,2]
[333324910,1722056696290,-500.0,0.00010958,2]
[333324911,1722056696313,-500.0,0.00010958,2]
[333324912,1722056696334,-500.0,0.00010958,2]
[333324913,1722056696357,-518.33,0.00010958,2]
[333324914,1722056696381,-500.0,0.00010958,2]
[333324915,1722056696404,-500.0,0.00010958,2]
[333324916,1722056696426,-500.0,0.00010958,2]
[333324917,1722056696453,-545.25,0.00010958,2]
[333324918,1722056696477,-500.0,0.00010958,2]
[333324919,1722056696501,-500.0,0.00010958,2]
[333324920,1722056696523,-500.0,0.00010958,2]
[333324921,1722056696544,-500.0,0.00010958,2]
[333324922,1722056696565,-500.0,0.00010958,2]
[333324923,1722056696586,-500.0,0.00010958,2]
[333324924,1722056696614,-500.0,0.00010958,2]
[333324925,1722056696635,-500.0,0.00010958,2]
[333324926,1722056696655,-500.0,0.00010958,2]
[333324927,1722056696676,-500.0,0.00010958,2]
[333324928,1722056696698,-500.0,0.00010958,2]
[333324929,1722056696719,-500.0,0.00010958,2]
[333324930,1722056696740,-500.0,0.00010958,2]
[333324931,1722056696761,-500.0,0.00010958,2]
[333324932,1722056696782,-501.87866063,0.00010958,2]
[333324933,1722056696803,-500.0,0.00010958,2]
[333324934,1722056696825,-500.0,0.00010958,2]
[333324935,1722056696846,-500.0,0.00010958,2]
[333324936,1722056696867,-500.0,0.00010958,2]
[333324937,1722056696889,-500.0,0.00010958,2]
[333324938,1722056696911,-500.0,0.00010958,2]
[333324939,1722056696936,-500.0,0.00010958,2]
[333324940,1722056696958,-500.0,0.00010958,2]
[333324941,1722056696980,-500.0,0.00010958,2]
[333324942,1722056697004,-497.0,0.00010958,2]
[333324943,1722056697024,-500.0,0.00010958,2]
[333324944,1722056697045,-500.0,0.00010958,2]
[333324945,1722056697066,-500.0,0.00010958,2]
[333324946,1722056697086,-500.0,0.00010958,2]
[333324947,1722056697110,-250.0,0.00010959,2]
[333324948,1722056697131,-5826.0,0.00010978,2]
[333324949,1722056697155,-37191.994,0.00010978,2]
[333324950,1722056697175,-1301.0,0.00010978,2]
[333324951,1722056697204,-500.0,0.00010996,2]
[333324952,1722056697226,-500.0,0.00010996,2]
[333324953,1722056697248,-165.32,0.00010996,2]
[333324954,1722056697270,-548.46,0.00010996,2]
[333324955,1722056697291,-500.0,0.00010996,2]
[333324956,1722056697312,-500.0,0.00010996,2]
[333324957,1722056697334,-596.76844723,0.00010996,2]
[333324958,1722056697356,-411.04,0.00010996,2]
[333324959,1722056697378,-500.0,0.00010996,2]
[333324960,1722056697401,-500.0,0.00010996,2]
[333324961,1722056697422,-267.06,0.00010996,2]
[333324962,1722056697445,-625.78,0.00010996,2]
[333324963,1722056697466,-500.0,0.00010996,2]
[333324964,1722056697490,-369.84,0.00010996,2]
[333324965,1722056697512,-257.104,0.00010996,2]
[333324966,1722056697536,-500.0,0.00010996,2]
[333324967,1722056697557,-500.0,0.00010996,2]
[333324968,1722056697578,-500.0,0.00010996,2]
[333324969,1722056697599,-500.0,0.00010997,2]
[333324970,1722056697620,-500.0,0.00010997,2]
[333324971,1722056697641,-500.0,0.00010997,2]
[333324972,1722056697663,-500.0,0.00010997,2]